[Event "2026 European Womens Championship"]
[Site "Batumi, GE"]
[Date "2026.05.30"]
[Round "6"]
[White "Giorgadze, Mariam Ere"]
[Black "Saraci, Rinesa"]
[Result "1/2-1/2"]
[Board "124"]
[TimeControl "5400+30"]
[WhiteFideId "13636839"]
[BlackFideId "4701976"]
[WhiteElo "1909"]
[BlackElo "1754"]
[BlackTitle "WCM"]
[WhiteClock "0:23:01"]
[BlackClock "0:09:59"]
[Variant "Standard"]

1. e4 {[%clk 1:30:59]}  e5 {[%clk 1:30:28]} 2. Nf3 {[%clk 1:31:23]}  Nc6 {[%clk 1:30:37]} 3. Bc4 {[%clk 1:31:48]}  Bc5 {[%clk 1:30:49]}
4. c3 {[%clk 1:32:11]}  d6 {[%clk 1:26:51]} 5. d3 {[%clk 1:29:28]}  Nf6 {[%clk 1:26:12]} 6. O-O {[%clk 1:29:07]}  h6 {[%clk 1:25:29]}
7. Nbd2 {[%clk 1:27:54]}  O-O {[%clk 1:24:10]} 8. h3 {[%clk 1:27:41]}  a6 {[%clk 1:20:44]} 9. Bb3 {[%clk 1:27:42]}  Re8 {[%clk 1:16:16]}
10. Re1 {[%clk 1:27:42]}  Be6 {[%clk 1:11:16]} 11. Bc2 {[%clk 1:28:02]}  Bb6 {[%clk 1:08:50]} 12. Nf1 {[%clk 1:27:57]}  Ne7 {[%clk 1:02:26]}
13. Ng3 {[%clk 1:22:51]}  Qc8 {[%clk 0:57:47]} 14. Nh2 {[%clk 1:13:22]}  Ng6 {[%clk 0:53:31]} 15. Nh5 {[%clk 1:09:41]}  Qd8 {[%clk 0:45:37]}
16. Nf1 {[%clk 1:00:21]}  Nxh5 {[%clk 0:39:42]} 17. Qxh5 {[%clk 1:00:43]}  Qf6 {[%clk 0:39:34]} 18. Be3 {[%clk 0:45:48]}  Nf4 {[%clk 0:33:52]}
19. Bxf4 {[%clk 0:43:25]}  Qxf4 {[%clk 0:34:00]} 20. Ne3 {[%clk 0:41:49]}  g6 {[%clk 0:32:08]} 21. Qd1 {[%clk 0:38:26]}  Kh7 {[%clk 0:30:45]}
22. Bb3 {[%clk 0:36:40]}  f5 {[%clk 0:25:40]} 23. g3 {[%clk 0:32:40]}  Qg5 {[%clk 0:25:29]} 24. h4 {[%clk 0:32:24]}  Qf6 {[%clk 0:22:19]}
25. Bxe6 {[%clk 0:25:46]}  Qxe6 {[%clk 0:22:29]} 26. Nd5 {[%clk 0:25:39]}  Rf8 {[%clk 0:21:07]} 27. Nxb6 {[%clk 0:25:23]}  cxb6 {[%clk 0:21:26]}
28. Kg2 {[%clk 0:24:07]}  f4 {[%clk 0:20:48]} 29. d4 {[%clk 0:22:57]}  Rad8 {[%clk 0:19:07]} 30. Qb3 {[%clk 0:21:11]}  Qg4 {[%clk 0:08:21]}
31. Rg1 {[%clk 0:09:07]}  f3+ {[%clk 0:07:37]} 32. Kf1 {[%clk 0:08:36]}  Qxe4 {[%clk 0:07:17]} 33. Rh1 {[%clk 0:06:43]}  exd4 {[%clk 0:06:27]}
34. Qxb6 {[%clk 0:05:41]}  dxc3 {[%clk 0:05:00]} 35. Qc7+ {[%clk 0:04:57]}  Kg8 {[%clk 0:04:38]} 36. bxc3 {[%clk 0:04:16]}  Rfe8 {[%clk 0:02:45]}
37. Kg1 {[%clk 0:03:29]}  Qc6 {[%clk 0:02:09]} 38. Qa5 {[%clk 0:03:01]}  Qc5 {[%clk 0:01:51]} 39. Qxc5 {[%clk 0:02:55]}  dxc5 {[%clk 0:02:15]}
40. Kh2 {[%clk 0:02:39]}  Re2 {[%clk 0:02:20]} 41. Rhf1 {[%clk 0:02:59]}  Rdd2 {[%clk 0:02:29]} 42. g4 {[%clk 0:03:04]}  Rxa2 {[%clk 0:00:46]}
43. Kg3 {[%clk 0:02:48]}  Rxf2 {[%clk 0:25:39]} 44. Rxf2 {[%clk 0:30:41]}  Rxa1 {[%clk 0:24:33]} 45. Rxf3 {[%clk 0:30:59]}  Ra3 {[%clk 0:23:50]}
46. Kf4 {[%clk 0:30:27]}  b5 {[%clk 0:23:36]} 47. Rd3 {[%clk 0:29:47]}  b4 {[%clk 0:21:38]} 48. Rd8+ {[%clk 0:29:58]}  Kf7 {[%clk 0:21:45]}
49. cxb4 {[%clk 0:30:04]}  cxb4 {[%clk 0:22:08]} 50. Rb8 {[%clk 0:30:12]}  a5 {[%clk 0:21:23]} 51. Rb7+ {[%clk 0:29:44]}  Ke8 {[%clk 0:20:14]}
52. Rb6 {[%clk 0:29:08]}  Ra4 {[%clk 0:17:18]} 53. Ke5 {[%clk 0:28:21]}  g5 {[%clk 0:16:50]} 54. Rxh6 {[%clk 0:26:00]}  gxh4 {[%clk 0:17:12]}
55. Ke6 {[%clk 0:23:16]}  Kf8 {[%clk 0:17:22]} 56. Kf6 {[%clk 0:23:41]}  Kg8 {[%clk 0:16:55]} 57. Rg6+ {[%clk 0:23:56]}  Kf8 {[%clk 0:13:41]}
58. Rh6 {[%clk 0:24:19]}  Ke8 {[%clk 0:09:59]} 59. Ke6 {[%clk 0:23:01]} 1/2-1/2

[Event "2026 European Womens Championship"]
[Site "Batumi, GE"]
[Date "2026.05.30"]
[Round "6"]
[White "Rekhviashvili, Mariam"]
[Black "Ediberidze, Alexandra"]
[Result "1/2-1/2"]
[Board "125"]
[TimeControl "5400+30"]
[WhiteFideId "13635859"]
[BlackFideId "13636685"]
[WhiteElo "1836"]
[BlackElo "1638"]
[WhiteClock "0:50:24"]
[BlackClock "0:02:14"]
[Variant "Standard"]

1. e4 {[%clk 1:26:28]}  c6 {[%clk 1:30:59]} 2. d4 {[%clk 1:26:50]}  d5 {[%clk 1:31:25]} 3. Nc3 {[%clk 1:27:18]}  dxe4 {[%clk 1:31:47]}
4. Nxe4 {[%clk 1:27:47]}  Nf6 {[%clk 1:32:09]} 5. Nxf6+ {[%clk 1:28:14]}  exf6 {[%clk 1:32:32]} 6. c3 {[%clk 1:28:41]}  Bd6 {[%clk 1:32:54]}
7. Bd3 {[%clk 1:29:03]}  O-O {[%clk 1:33:11]} 8. Qc2 {[%clk 1:29:33]}  Re8+ {[%clk 1:33:29]} 9. Ne2 {[%clk 1:29:58]}  h6 {[%clk 1:33:55]}
10. O-O {[%clk 1:30:24]}  Qc7 {[%clk 1:34:14]} 11. h3 {[%clk 1:30:24]}  Nd7 {[%clk 1:34:24]} 12. Be3 {[%clk 1:30:49]}  Nf8 {[%clk 1:33:59]}
13. Rfe1 {[%clk 1:29:35]}  Ne6 {[%clk 1:29:43]} 14. Rad1 {[%clk 1:28:57]}  Bd7 {[%clk 1:29:09]} 15. Qd2 {[%clk 1:28:26]}  Ng5 {[%clk 1:20:42]}
16. Nf4 {[%clk 1:23:09]}  Re7 {[%clk 1:07:42]} 17. d5 {[%clk 1:15:28]}  Rae8 {[%clk 1:04:01]} 18. dxc6 {[%clk 1:15:09]}  Bxc6 {[%clk 1:03:02]}
19. Bh7+ {[%clk 1:07:45]}  Kxh7 {[%clk 1:03:21]} 20. Qxd6 {[%clk 1:08:09]}  Qxd6 {[%clk 0:57:39]} 21. Rxd6 {[%clk 1:07:57]}  Ne6 {[%clk 0:54:27]}
22. Nd5 {[%clk 1:02:38]}  Bxd5 {[%clk 0:53:54]} 23. Rxd5 {[%clk 1:03:06]}  b6 {[%clk 0:44:14]} 24. Red1 {[%clk 1:00:37]}  g6 {[%clk 0:39:36]}
25. Rd7 {[%clk 0:58:46]}  f5 {[%clk 0:35:52]} 26. g3 {[%clk 0:57:44]}  Ng5 {[%clk 0:33:45]} 27. Kg2 {[%clk 0:57:36]}  Ne4 {[%clk 0:31:20]}
28. Rd8 {[%clk 0:56:47]}  Nf6 {[%clk 0:28:21]} 29. R1d6 {[%clk 0:55:44]}  Rxd8 {[%clk 0:27:36]} 30. Rxd8 {[%clk 0:56:10]}  Re8 {[%clk 0:27:58]}
31. Rd6 {[%clk 0:56:09]}  Re6 {[%clk 0:28:01]} 32. Rd3 {[%clk 0:55:58]}  a6 {[%clk 0:22:26]} 33. Rd8 {[%clk 0:56:04]}  b5 {[%clk 0:19:59]}
34. Ra8 {[%clk 0:56:27]}  Nd5 {[%clk 0:18:56]} 35. Bd4 {[%clk 0:56:50]}  f6 {[%clk 0:18:33]} 36. Ra7+ {[%clk 0:57:16]}  Kg8 {[%clk 0:18:51]}
37. Rd7 {[%clk 0:55:48]}  Nb6 {[%clk 0:18:00]} 38. Rd8+ {[%clk 0:56:13]}  Kf7 {[%clk 0:18:07]} 39. b3 {[%clk 0:56:36]}  Rc6 {[%clk 0:17:35]}
40. Kf3 {[%clk 0:55:51]}  Nc8 {[%clk 0:17:00]} 41. Ke3 {[%clk 0:53:05]}  Ne7 {[%clk 0:13:57]} 42. Kd3 {[%clk 0:52:29]}  Rc8 {[%clk 0:12:10]}
43. Rxc8 {[%clk 0:52:01]}  Nxc8 {[%clk 0:12:39]} 44. c4 {[%clk 0:52:10]}  Ke6 {[%clk 0:12:26]} 45. Kc3 {[%clk 0:52:24]}  Kd6 {[%clk 0:08:06]}
46. Kb4 {[%clk 0:52:33]}  Kc6 {[%clk 0:07:49]} 47. Ka5 {[%clk 0:52:53]}  bxc4 {[%clk 0:07:37]} 48. bxc4 {[%clk 0:53:17]}  Kb7 {[%clk 0:07:54]}
49. Bxf6 {[%clk 0:53:27]}  Nd6 {[%clk 0:07:59]} 50. Kb4 {[%clk 0:53:20]}  Ne4 {[%clk 0:08:13]} 51. Bd4 {[%clk 0:53:47]}  Kc6 {[%clk 0:08:16]}
52. Be3 {[%clk 0:52:28]}  h5 {[%clk 0:06:40]} 53. h4 {[%clk 0:52:43]}  Nf6 {[%clk 0:06:08]} 54. Kc3 {[%clk 0:52:12]}  Ne4+ {[%clk 0:04:32]}
55. Kd4 {[%clk 0:52:16]}  Kd6 {[%clk 0:03:27]} 56. f3 {[%clk 0:50:11]}  Nc5 {[%clk 0:01:55]} 57. Bc1 {[%clk 0:49:15]}  Ne6+ {[%clk 0:02:07]}
58. Kc3 {[%clk 0:49:32]}  Kc5 {[%clk 0:02:28]} 59. Be3+ {[%clk 0:49:53]}  Kc6 {[%clk 0:02:36]} 60. Kb4 {[%clk 0:50:07]}  Nf8 {[%clk 0:01:09]}
61. c5 {[%clk 0:49:50]}  Ne6 {[%clk 0:01:24]} 62. a4 {[%clk 0:49:23]}  Nc7 {[%clk 0:01:20]} 63. Ka5 {[%clk 0:49:14]}  Kb7 {[%clk 0:01:40]}
64. Bd4 {[%clk 0:49:19]}  Nd5 {[%clk 0:01:53]} 65. c6+ {[%clk 0:49:13]}  Kxc6 {[%clk 0:02:15]} 66. Kxa6 {[%clk 0:49:40]}  Nb4+ {[%clk 0:01:56]}
67. Ka7 {[%clk 0:50:01]}  Kc7 {[%clk 0:01:57]} 68. Bb6 {[%clk 0:50:09]}  Kc6 {[%clk 0:02:14]} 69. a5 {[%clk 0:50:21]}  Nd5 {[%clk 0:02:25]}
70. Bd4 {[%clk 0:50:24]}  Nb4 {[%clk 0:02:05]} 71. a6 {[%clk 0:50:44]}  Kb5 {[%clk 0:01:27]} 72. Kb7 {[%clk 0:50:34]}  Nxa6 {[%clk 0:01:52]}
73. Bf2 {[%clk 0:50:26]}  Nb4 {[%clk 0:01:41]} 74. Kc7 {[%clk 0:50:47]}  Kc4 {[%clk 0:02:03]} 75. Kd6 {[%clk 0:50:47]}  Kd3 {[%clk 0:02:15]}
76. Bc5 {[%clk 0:50:13]}  Nc2 {[%clk 0:01:05]} 77. Ke5 {[%clk 0:50:11]}  Ke2 {[%clk 0:01:24]} 78. Kf6 {[%clk 0:49:46]}  Kxf3 {[%clk 0:01:44]}
79. Kxg6 {[%clk 0:50:13]}  Kg4 {[%clk 0:02:05]} 80. Bd6 {[%clk 0:50:24]}  Nd4 {[%clk 0:02:14]} 1/2-1/2

[Event "2026 European Womens Championship"]
[Site "Batumi, GE"]
[Date "2026.05.30"]
[Round "6"]
[White "Chkhartishvili, Lika"]
[Black "Chighvaria, Ana"]
[Result "1/2-1/2"]
[Board "126"]
[TimeControl "5400+30"]
[WhiteFideId "13635166"]
[BlackFideId "13628666"]
[WhiteElo "1822"]
[BlackElo "1518"]
[WhiteClock "0:09:08"]
[BlackClock "0:00:54"]
[Variant "Standard"]

1. e4 {[%clk 1:30:58]}  c5 {[%clk 1:30:55]} 2. Nf3 {[%clk 1:31:23]}  Nc6 {[%clk 1:31:18]} 3. d4 {[%clk 1:31:48]}  cxd4 {[%clk 1:31:43]}
4. Nxd4 {[%clk 1:32:15]}  Nf6 {[%clk 1:32:05]} 5. Nc3 {[%clk 1:32:40]}  g6 {[%clk 1:30:13]} 6. Nxc6 {[%clk 1:32:58]}  dxc6 {[%clk 1:30:36]}
7. Qxd8+ {[%clk 1:31:58]}  Kxd8 {[%clk 1:30:57]} 8. Bf4 {[%clk 1:25:42]}  Be6 {[%clk 1:27:35]} 9. O-O-O+ {[%clk 1:25:29]}  Ke8 {[%clk 1:27:31]}
10. Be2 {[%clk 1:20:25]}  Bg7 {[%clk 1:25:29]} 11. Be5 {[%clk 1:15:49]}  Kf8 {[%clk 1:23:25]} 12. Kb1 {[%clk 1:15:27]}  Nd7 {[%clk 1:20:25]}
13. Bxg7+ {[%clk 1:15:33]}  Kxg7 {[%clk 1:20:41]} 14. f4 {[%clk 1:15:30]}  h5 {[%clk 1:18:31]} 15. Rhf1 {[%clk 1:11:26]}  f5 {[%clk 1:15:18]}
16. h3 {[%clk 1:08:08]}  Nf6 {[%clk 1:09:15]} 17. exf5 {[%clk 1:05:07]}  Bxf5 {[%clk 1:09:08]} 18. Rfe1 {[%clk 1:05:02]}  Rad8 {[%clk 1:06:54]}
19. Bd3 {[%clk 1:03:12]}  Kf7 {[%clk 1:00:01]} 20. Bc4+ {[%clk 1:00:00]}  e6 {[%clk 0:58:42]} 21. Ne2 {[%clk 0:58:53]}  Rxd1+ {[%clk 0:55:21]}
22. Rxd1 {[%clk 0:59:04]}  Be4 {[%clk 0:54:31]} 23. Nd4 {[%clk 0:56:30]}  Bd5 {[%clk 0:51:10]} 24. Bxd5 {[%clk 0:56:25]}  exd5 {[%clk 0:51:17]}
25. Nf3 {[%clk 0:56:20]}  Re8 {[%clk 0:48:59]} 26. Ne5+ {[%clk 0:54:52]}  Kg7 {[%clk 0:43:59]} 27. Rd3 {[%clk 0:51:52]}  Nd7 {[%clk 0:42:35]}
28. Nf3 {[%clk 0:47:01]}  Re2 {[%clk 0:38:55]} 29. Rd2 {[%clk 0:44:59]}  Re4 {[%clk 0:36:47]} 30. Rd4 {[%clk 0:39:19]}  Re2 {[%clk 0:36:48]}
31. Rd2 {[%clk 0:29:55]}  Re4 {[%clk 0:36:56]} 32. g3 {[%clk 0:28:14]}  Nc5 {[%clk 0:34:48]} 33. Kc1 {[%clk 0:18:23]}  Re3 {[%clk 0:34:54]}
34. Ng5 {[%clk 0:15:22]}  Re1+ {[%clk 0:26:29]} 35. Rd1 {[%clk 0:15:32]}  Rxd1+ {[%clk 0:25:09]} 36. Kxd1 {[%clk 0:15:58]}  Kf6 {[%clk 0:25:24]}
37. Ke2 {[%clk 0:15:44]}  Na4 {[%clk 0:24:59]} 38. b3 {[%clk 0:14:09]}  Nc3+ {[%clk 0:24:57]} 39. Kd2 {[%clk 0:13:44]}  Nb5 {[%clk 0:23:39]}
40. Ke3 {[%clk 0:13:23]}  Nd6 {[%clk 0:23:34]} 41. g4 {[%clk 0:12:44]}  c5 {[%clk 0:21:48]} 42. a4 {[%clk 0:11:19]}  b6 {[%clk 0:16:46]}
43. Nf3 {[%clk 0:10:49]}  Nf7 {[%clk 0:16:25]} 44. Ne1 {[%clk 0:10:35]}  Nd6 {[%clk 0:15:58]} 45. Nd3 {[%clk 0:10:20]}  Nf7 {[%clk 0:15:47]}
46. Kf3 {[%clk 0:10:05]}  hxg4+ {[%clk 0:13:44]} 47. hxg4 {[%clk 0:10:24]}  Ke6 {[%clk 0:13:58]} 48. Ke3 {[%clk 0:09:51]}  Kf6 {[%clk 0:12:15]}
49. a5 {[%clk 0:09:26]}  Ke6 {[%clk 0:12:22]} 50. axb6 {[%clk 0:09:40]}  axb6 {[%clk 0:12:45]} 51. Nb2 {[%clk 0:09:29]}  Nd6 {[%clk 0:12:16]}
52. Na4 {[%clk 0:09:30]}  Nc8 {[%clk 0:11:55]} 53. Kf3 {[%clk 0:09:26]}  Kf6 {[%clk 0:11:48]} 54. Kg3 {[%clk 0:09:29]}  Ke6 {[%clk 0:11:03]}
55. Kh3 {[%clk 0:08:59]}  Kf7 {[%clk 0:09:55]} 56. Kg3 {[%clk 0:08:26]}  Ke6 {[%clk 0:10:17]} 57. Kf3 {[%clk 0:08:50]}  Kf6 {[%clk 0:10:37]}
58. Nc3 {[%clk 0:08:23]}  Ne7 {[%clk 0:10:39]} 59. Na4 {[%clk 0:08:12]}  Nc8 {[%clk 0:11:00]} 60. Ke3 {[%clk 0:08:37]}  Ke6 {[%clk 0:11:22]}
61. Kd3 {[%clk 0:08:46]}  Kd6 {[%clk 0:10:01]} 62. Nc3 {[%clk 0:08:44]}  Ne7 {[%clk 0:10:05]} 63. Ne2 {[%clk 0:08:55]}  Nc6 {[%clk 0:10:08]}
64. Ng3 {[%clk 0:08:51]}  Nb4+ {[%clk 0:10:06]} 65. Kd2 {[%clk 0:09:13]}  Nc6 {[%clk 0:09:59]} 66. Ne2 {[%clk 0:09:09]}  Ne7 {[%clk 0:09:12]}
67. Ng1 {[%clk 0:09:26]}  Nc6 {[%clk 0:08:56]} 68. Nf3 {[%clk 0:09:44]}  Ke6 {[%clk 0:08:06]} 69. Ke3 {[%clk 0:09:32]}  Kf6 {[%clk 0:05:52]}
70. c3 {[%clk 0:09:52]}  Ke6 {[%clk 0:06:07]} 71. Nh4 {[%clk 0:10:16]}  Kf6 {[%clk 0:06:05]} 72. Nf3 {[%clk 0:10:14]}  Ke6 {[%clk 0:06:15]}
73. Ne1 {[%clk 0:10:04]}  Ne7 {[%clk 0:05:44]} 74. Nd3 {[%clk 0:10:18]}  Nc6 {[%clk 0:06:00]} 75. Kd2 {[%clk 0:10:13]}  Kf6 {[%clk 0:05:45]}
76. Kc2 {[%clk 0:10:19]}  Ke6 {[%clk 0:04:53]} 77. Kb2 {[%clk 0:10:17]}  c4 {[%clk 0:04:14]} 78. bxc4 {[%clk 0:10:14]}  dxc4 {[%clk 0:04:42]}
79. Nf2 {[%clk 0:10:31]}  Kd5 {[%clk 0:04:42]} 80. Kc2 {[%clk 0:10:52]}  Ne7 {[%clk 0:04:50]} 81. Kd2 {[%clk 0:11:15]}  Ng8 {[%clk 0:05:04]}
82. Ke3 {[%clk 0:11:28]}  Nf6 {[%clk 0:05:16]} 83. Kf3 {[%clk 0:10:33]}  b5 {[%clk 0:04:31]} 84. Nd1 {[%clk 0:10:17]}  Ke6 {[%clk 0:03:37]}
85. Ne3 {[%clk 0:10:06]}  Nd7 {[%clk 0:02:42]} 86. Nc2 {[%clk 0:09:42]}  Kd5 {[%clk 0:01:17]} 87. Nb4+ {[%clk 0:09:22]}  Ke6 {[%clk 0:01:24]}
88. Nc6 {[%clk 0:09:27]}  Kd6 {[%clk 0:00:58]} 89. Nd4 {[%clk 0:09:06]}  Kc5 {[%clk 0:00:37]} 90. Ne6+ {[%clk 0:09:23]}  Kd5 {[%clk 0:00:48]}
91. Nc7+ {[%clk 0:08:38]}  Kc6 {[%clk 0:00:40]} 92. Ne6 {[%clk 0:08:49]}  Kd5 {[%clk 0:00:54]} 93. Nc7+ {[%clk 0:09:08]} 1/2-1/2

[Event "2026 European Womens Championship"]
[Site "Batumi, GE"]
[Date "2026.05.30"]
[Round "6"]
[White "Chanturia, Lika"]
[Black "Saltkhutsishvili, Sara"]
[Result "0-1"]
[Board "128"]
[TimeControl "5400+30"]
[WhiteFideId "13618857"]
[BlackFideId "13636995"]
[WhiteElo "1649"]
[BlackElo "1763"]
[WhiteClock "0:09:40"]
[BlackClock "0:17:59"]
[Variant "Standard"]

1. e4 {[%clk 1:30:58]}  c5 {[%clk 1:30:53]} 2. Nf3 {[%clk 1:31:20]}  Nc6 {[%clk 1:31:20]} 3. Bb5 {[%clk 1:31:43]}  g6 {[%clk 1:31:38]}
4. O-O {[%clk 1:32:05]}  Bg7 {[%clk 1:31:59]} 5. Re1 {[%clk 1:32:28]}  Nf6 {[%clk 1:30:40]} 6. c3 {[%clk 1:31:15]}  O-O {[%clk 1:29:08]}
7. h3 {[%clk 1:31:20]}  a6 {[%clk 1:25:35]} 8. Bf1 {[%clk 1:30:16]}  d5 {[%clk 1:18:11]} 9. e5 {[%clk 1:25:01]}  Nd7 {[%clk 1:18:12]}
10. d4 {[%clk 1:24:04]}  e6 {[%clk 1:11:33]} 11. Bg5 {[%clk 1:15:17]}  Qc7 {[%clk 1:07:09]} 12. Nbd2 {[%clk 1:10:30]}  b5 {[%clk 1:01:53]}
13. g3 {[%clk 0:57:28]}  Qb6 {[%clk 0:55:16]} 14. Nb3 {[%clk 0:48:08]}  a5 {[%clk 0:51:13]} 15. Qd2 {[%clk 0:46:44]}  b4 {[%clk 0:41:02]}
16. Bh6 {[%clk 0:40:02]}  a4 {[%clk 0:38:45]} 17. dxc5 {[%clk 0:32:16]}  bxc3 {[%clk 0:29:38]} 18. Qxc3 {[%clk 0:26:19]}  Qa7 {[%clk 0:23:56]}
19. Bxg7 {[%clk 0:25:25]}  Kxg7 {[%clk 0:24:22]} 20. Nbd4 {[%clk 0:24:26]}  Nxd4 {[%clk 0:23:54]} 21. Qxd4 {[%clk 0:21:13]}  Nxc5 {[%clk 0:18:35]}
22. Rac1 {[%clk 0:17:09]}  Nd7 {[%clk 0:16:32]} 23. Bb5 {[%clk 0:14:03]}  Nb6 {[%clk 0:13:32]} 24. Qf4 {[%clk 0:12:19]}  Qa5 {[%clk 0:10:50]}
25. Qf6+ {[%clk 0:09:13]}  Kg8 {[%clk 0:10:45]} 26. Bc6 {[%clk 0:09:11]}  Rb8 {[%clk 0:10:18]} 27. Ng5 {[%clk 0:06:04]}  Bb7 {[%clk 0:08:17]}
28. Re3 {[%clk 0:03:52]}  Bxc6 {[%clk 0:03:12]} 29. Rxc6 {[%clk 0:02:37]}  Nd7 {[%clk 0:02:51]} 30. Qe7 {[%clk 0:01:46]}  Qd8 {[%clk 0:02:26]}
31. Qxd8 {[%clk 0:01:54]}  Rfxd8 {[%clk 0:02:53]} 32. Ra6 {[%clk 0:01:27]}  Nc5 {[%clk 0:01:44]} 33. Ra7 {[%clk 0:01:27]}  d4 {[%clk 0:01:11]}
34. Re2 {[%clk 0:01:24]}  Rd5 {[%clk 0:00:44]} 35. f4 {[%clk 0:00:53]}  Rf8 {[%clk 0:00:40]} 36. Ra5 {[%clk 0:00:54]}  h6 {[%clk 0:00:41]}
37. Nf3 {[%clk 0:01:04]}  Rc8 {[%clk 0:00:41]} 38. Rd2 {[%clk 0:00:56]}  Ne4 {[%clk 0:00:36]} 39. Rxd4 {[%clk 0:00:37]}  Rxa5 {[%clk 0:00:55]}
40. Rxe4 {[%clk 0:01:02]}  Rc2 {[%clk 0:00:58]} 41. b4 {[%clk 0:28:13]}  axb3 {[%clk 0:30:24]} 42. axb3 {[%clk 0:28:38]}  Ra3 {[%clk 0:30:01]}
43. Re3 {[%clk 0:26:48]}  Ra1+ {[%clk 0:28:35]} 44. Ne1 {[%clk 0:26:31]}  Rb2 {[%clk 0:26:57]} 45. h4 {[%clk 0:25:13]}  Kf8 {[%clk 0:25:11]}
46. Kf1 {[%clk 0:25:25]}  Ke8 {[%clk 0:24:48]} 47. Rd3 {[%clk 0:22:37]}  Ke7 {[%clk 0:23:21]} 48. Rc3 {[%clk 0:21:44]}  Kd7 {[%clk 0:22:22]}
49. Rd3+ {[%clk 0:19:23]}  Kc6 {[%clk 0:21:45]} 50. Rd6+ {[%clk 0:18:38]}  Kb5 {[%clk 0:20:13]} 51. Rd3 {[%clk 0:18:42]}  Kc5 {[%clk 0:19:49]}
52. b4+ {[%clk 0:14:28]}  Kxb4 {[%clk 0:19:25]} 53. Re3 {[%clk 0:13:17]}  Kc4 {[%clk 0:18:53]} 54. Re2 {[%clk 0:12:01]}  Raa2 {[%clk 0:17:54]}
55. Re4+ {[%clk 0:11:16]}  Kd5 {[%clk 0:18:04]} 56. Re3 {[%clk 0:10:20]}  Rf2+ {[%clk 0:17:02]} 57. Kg1 {[%clk 0:10:45]}  Rfe2 {[%clk 0:17:02]}
58. Rxe2 {[%clk 0:10:43]}  Rxe2 {[%clk 0:17:30]} 59. Kf1 {[%clk 0:11:05]}  Ra2 {[%clk 0:17:38]} 60. Nf3 {[%clk 0:09:44]}  Ke4 {[%clk 0:17:59]}
61. Ne1 {[%clk 0:09:40]}  Ke3 {[%clk 0:17:59]} 0-1

[Event "2026 European Womens Championship"]
[Site "Batumi, GE"]
[Date "2026.05.30"]
[Round "6"]
[White "Kedelidze, Aneta"]
[Black "Vakhania, Aleksandra"]
[Result "0-1"]
[Board "129"]
[TimeControl "5400+30"]
[WhiteFideId "13626191"]
[BlackFideId "13602560"]
[WhiteElo "1676"]
[BlackElo "2079"]
[BlackTitle "WIM"]
[WhiteClock "0:30:05"]
[BlackClock "0:49:45"]
[Variant "Standard"]

1. d4 {[%clk 1:30:17]}  d5 {[%clk 1:30:18]} 2. c4 {[%clk 1:30:26]}  c6 {[%clk 1:30:09]} 3. Nf3 {[%clk 1:30:48]}  e6 {[%clk 1:30:20]}
4. e3 {[%clk 1:30:38]}  f5 {[%clk 1:25:21]} 5. Nc3 {[%clk 1:30:30]}  Nf6 {[%clk 1:24:46]} 6. g3 {[%clk 1:30:52]}  Bd6 {[%clk 1:24:55]}
7. Bg2 {[%clk 1:31:16]}  O-O {[%clk 1:24:55]} 8. O-O {[%clk 1:31:23]}  Nbd7 {[%clk 1:25:02]} 9. Qe2 {[%clk 1:28:56]}  Ne4 {[%clk 1:24:54]}
10. Nd2 {[%clk 1:27:56]}  b6 {[%clk 1:24:23]} 11. f3 {[%clk 1:23:22]}  Nxd2 {[%clk 1:20:14]} 12. Bxd2 {[%clk 1:23:38]}  Ba6 {[%clk 1:20:29]}
13. b3 {[%clk 1:23:00]}  e5 {[%clk 1:19:19]} 14. Rfc1 {[%clk 1:18:52]}  Qf6 {[%clk 1:07:57]} 15. Qf2 {[%clk 1:05:57]}  dxc4 {[%clk 1:06:53]}
16. d5 {[%clk 1:01:19]}  Nc5 {[%clk 1:02:36]} 17. Rcb1 {[%clk 0:54:06]}  cxb3 {[%clk 0:59:26]} 18. axb3 {[%clk 0:54:22]}  Bd3 {[%clk 0:59:47]}
19. b4 {[%clk 0:52:43]}  Na6 {[%clk 0:59:55]} 20. Rb3 {[%clk 0:44:28]}  Bc4 {[%clk 0:57:34]} 21. Rba3 {[%clk 0:28:36]}  Nxb4 {[%clk 0:57:25]}
22. Rxa7 {[%clk 0:28:26]}  Rxa7 {[%clk 0:57:40]} 23. Rxa7 {[%clk 0:28:46]}  cxd5 {[%clk 0:56:24]} 24. Qe1 {[%clk 0:27:49]}  Bc5 {[%clk 0:55:01]}
25. Na4 {[%clk 0:23:58]}  Nc6 {[%clk 0:51:19]} 26. Rb7 {[%clk 0:21:08]}  Ba6 {[%clk 0:50:50]} 27. Nxc5 {[%clk 0:20:34]}  Bxb7 {[%clk 0:51:16]}
28. Nd7 {[%clk 0:20:23]}  Qd8 {[%clk 0:47:52]} 29. Nxf8 {[%clk 0:20:24]}  Kxf8 {[%clk 0:48:19]} 30. Bh3 {[%clk 0:19:30]}  g6 {[%clk 0:48:05]}
31. e4 {[%clk 0:19:09]}  dxe4 {[%clk 0:46:49]} 32. Bh6+ {[%clk 0:19:26]}  Kg8 {[%clk 0:46:19]} 33. fxe4 {[%clk 0:18:36]}  Qd4+ {[%clk 0:44:32]}
34. Be3 {[%clk 0:18:03]}  Qxe4 {[%clk 0:40:40]} 35. Bg2 {[%clk 0:18:18]}  Qd3 {[%clk 0:38:52]} 36. Qc1 {[%clk 0:16:01]}  Nd4 {[%clk 0:37:55]}
37. Bd5+ {[%clk 0:09:24]}  Kf8 {[%clk 0:29:07]} 38. Bh6+ {[%clk 0:09:05]}  Ke8 {[%clk 0:29:24]} 39. Bf7+ {[%clk 0:07:02]}  Kd7 {[%clk 0:27:29]}
40. Qb2 {[%clk 0:01:15]}  Qf3 {[%clk 0:24:15]} 41. Be6+ {[%clk 0:00:32]}  Kxe6 {[%clk 0:19:27]} 42. Qxb6+ {[%clk 0:30:05]}  Bc6 {[%clk 0:49:45]} 0-1

[Event "2026 European Womens Championship"]
[Site "Batumi, GE"]
[Date "2026.05.30"]
[Round "6"]
[White "Khairova, Evelina"]
[Black "Recica, Jona"]
[Result "1-0"]
[Board "130"]
[TimeControl "5400+30"]
[WhiteFideId "2845768"]
[BlackFideId "22105239"]
[WhiteElo "1880"]
[BlackElo "1842"]
[WhiteClock "0:05:05"]
[BlackClock "0:09:18"]
[Variant "Standard"]

1. e4 {[%clk 1:30:15]}  e5 {[%clk 1:30:26]} 2. Nf3 {[%clk 1:30:41]}  Nc6 {[%clk 1:30:51]} 3. d4 {[%clk 1:31:07]}  exd4 {[%clk 1:31:15]}
4. Nxd4 {[%clk 1:31:34]}  Qf6 {[%clk 1:31:03]} 5. Nb3 {[%clk 1:31:57]}  a5 {[%clk 1:30:18]} 6. Nc3 {[%clk 1:30:40]}  a4 {[%clk 1:28:48]}
7. Nd5 {[%clk 1:30:46]}  Qd8 {[%clk 1:27:05]} 8. Nd4 {[%clk 1:30:40]}  Nxd4 {[%clk 1:23:43]} 9. Qxd4 {[%clk 1:31:04]}  d6 {[%clk 1:20:56]}
10. Bd3 {[%clk 1:13:58]}  c6 {[%clk 1:16:11]} 11. Nb6 {[%clk 1:06:08]}  c5 {[%clk 1:02:08]} 12. Bb5+ {[%clk 1:06:29]}  Bd7 {[%clk 1:02:19]}
13. Bxd7+ {[%clk 1:06:15]}  Ke7 {[%clk 1:02:24]} 14. Bg5+ {[%clk 0:54:28]}  Nf6 {[%clk 0:59:22]} 15. Nd5+ {[%clk 0:50:47]}  Kxd7 {[%clk 0:57:45]}
16. Qc4 {[%clk 0:45:21]}  Qa5+ {[%clk 0:44:24]} 17. Bd2 {[%clk 0:38:56]}  Qa6 {[%clk 0:42:38]} 18. Nxf6+ {[%clk 0:37:38]}  gxf6 {[%clk 0:42:50]}
19. Qxf7+ {[%clk 0:36:00]}  Be7 {[%clk 0:42:59]} 20. a3 {[%clk 0:31:29]}  Qb5 {[%clk 0:39:43]} 21. O-O-O {[%clk 0:28:28]}  Raf8 {[%clk 0:37:33]}
22. Qd5 {[%clk 0:28:19]}  Qc6 {[%clk 0:37:31]} 23. Qf5+ {[%clk 0:28:12]}  Kc7 {[%clk 0:37:01]} 24. Bf4 {[%clk 0:28:09]}  Rd8 {[%clk 0:36:06]}
25. Rd5 {[%clk 0:26:23]}  b6 {[%clk 0:34:38]} 26. Rhd1 {[%clk 0:25:32]}  Qd7 {[%clk 0:32:52]} 27. Qh5 {[%clk 0:24:39]}  Qe6 {[%clk 0:32:23]}
28. Qe2 {[%clk 0:19:19]}  Kc6 {[%clk 0:29:36]} 29. Qc4 {[%clk 0:14:01]}  Qg4 {[%clk 0:25:00]} 30. Qxa4+ {[%clk 0:14:21]}  Kb7 {[%clk 0:25:23]}
31. Bg3 {[%clk 0:12:44]}  h5 {[%clk 0:23:10]} 32. f3 {[%clk 0:11:57]}  Qe6 {[%clk 0:16:01]} 33. Qb5 {[%clk 0:11:27]}  h4 {[%clk 0:15:13]}
34. Be1 {[%clk 0:09:31]}  Qd7 {[%clk 0:14:13]} 35. Rxc5 {[%clk 0:09:15]}  Qxb5 {[%clk 0:12:48]} 36. Rxb5 {[%clk 0:09:39]}  h3 {[%clk 0:13:10]}
37. g3 {[%clk 0:08:22]}  Kc6 {[%clk 0:13:34]} 38. Rbd5 {[%clk 0:07:52]}  Bf8 {[%clk 0:11:51]} 39. Bb4 {[%clk 0:07:43]}  Be7 {[%clk 0:11:21]}
40. f4 {[%clk 0:06:36]}  Kc7 {[%clk 0:09:05]} 41. Kb1 {[%clk 0:06:05]}  Kc6 {[%clk 0:09:13]} 42. c4 {[%clk 0:05:53]}  Kc7 {[%clk 0:09:18]}
43. e5 {[%clk 0:05:05]} 1-0